[Event "*** Titled Tuesday 3|2 Blitz"]
[Site "Chess.com"]
[Date "2016.09.06"]
[Round "1"]
[White "NTBT_DHS"]
[Black "Zhani-Z"]
[Result "0-1"]
[WhiteElo "2524"]
[BlackElo "2272"]
[TimeControl "180+2"]
[EndTime "11:08:10 PDT"]
[Termination "Zhani-Z won by resignation"]

1. d4 {[%clk 0:03:01.9]} 1... Nf6 {[%clk 0:02:45.2]} 2. c4 {[%clk 0:03:03]} 2...
e6 {[%clk 0:02:45.6]} 3. Nc3 {[%clk 0:03:02.4]} 3... Bb4 {[%clk 0:02:45.7]} 4.
e3 {[%clk 0:03:02.9]} 4... O-O {[%clk 0:02:45.4]} 5. Ne2 {[%clk 0:03:03.8]} 5...
d5 {[%clk 0:02:44.7]} 6. cxd5 {[%clk 0:03:02.4]} 6... exd5 {[%clk 0:02:44.5]} 7.
Nf4 {[%clk 0:03:03.8]} 7... c6 {[%clk 0:02:35.4]} 8. Bd3 {[%clk 0:03:04.6]} 8...
a5 {[%clk 0:02:30.6]} 9. O-O {[%clk 0:03:02.7]} 9... Na6 {[%clk 0:02:31.3]} 10.
Qc2 {[%clk 0:02:58.7]} 10... Nc7 {[%clk 0:02:26]} 11. Nce2 {[%clk 0:02:46.2]}
11... Re8 {[%clk 0:02:18]} 12. a3 {[%clk 0:02:46.8]} 12... Bd6 {[%clk
0:02:18.2]} 13. Bd2 {[%clk 0:02:47.4]} 13... Ne6 {[%clk 0:02:17.2]} 14. Rfe1
{[%clk 0:02:45.4]} 14... Nxf4 {[%clk 0:02:14.8]} 15. Nxf4 {[%clk 0:02:44.1]}
15... Ne4 {[%clk 0:02:14]} 16. f3 {[%clk 0:02:39.5]} 16... Nxd2 {[%clk
0:02:11.3]} 17. Qxd2 {[%clk 0:02:40.9]} 17... Qf6 {[%clk 0:01:54.3]} 18. Bc2
{[%clk 0:02:06.8]} 18... Bf5 {[%clk 0:01:47.4]} 19. Bxf5 {[%clk 0:01:55.5]}
19... Qxf5 {[%clk 0:01:48.1]} 20. Nd3 {[%clk 0:01:56.8]} 20... Re7 {[%clk
0:01:45.9]} 21. Re2 {[%clk 0:01:41.9]} 21... h5 {[%clk 0:01:42]} 22. Rae1 {[%clk
0:01:41.9]} 22... Rae8 {[%clk 0:01:42]} 23. f4 {[%clk 0:01:35.8]} 23... f6
{[%clk 0:01:40.4]} 24. Nf2 {[%clk 0:01:35.3]} 24... Bc7 {[%clk 0:01:34]} 25. g3
{[%clk 0:01:35.6]} 25... Bb6 {[%clk 0:01:19.7]} 26. Kg2 {[%clk 0:01:35.3]} 26...
Bc7 {[%clk 0:01:02.5]} 27. h3 {[%clk 0:01:35.7]} 27... Qg6 {[%clk 0:01:01.4]}
28. g4 {[%clk 0:01:30.1]} 28... h4 {[%clk 0:00:59.1]} 29. Kf3 {[%clk 0:01:24.2]}
29... f5 {[%clk 0:00:58.2]} 30. Qd3 {[%clk 0:01:20.6]} 30... Re4 {[%clk
0:00:46.6]} 31. g5 {[%clk 0:00:59.7]} 31... Qh5+ {[%clk 0:00:46.1]} 32. Kg2
{[%clk 0:01:01]} 32... Bxf4 {[%clk 0:00:37.4]} 33. Nxe4 {[%clk 0:01:02.2]} 33...
fxe4 {[%clk 0:00:37.6]} 34. exf4 {[%clk 0:00:57.4]} 34... exd3 {[%clk 0:00:38]}
35. Rxe8+ {[%clk 0:00:59.1]} 35... Kh7 {[%clk 0:00:38.5]} 36. g6+ {[%clk
0:00:42.3]} 36... Qxg6+ {[%clk 0:00:38.5]} 37. Kf3 {[%clk 0:00:40.8]} 37... d2
{[%clk 0:00:40]} 38. R1e6 {[%clk 0:00:34.3]} 38... d1=Q+ {[%clk 0:00:38.8]} 0-1

[Event "*** Titled Tuesday 3|2 Blitz"]
[Site "Chess.com"]
[Date "2016.09.06"]
[Round "1"]
[White "ZEN-22"]
[Black "Mornar1951"]
[Result "0-1"]
[WhiteElo "2274"]
[BlackElo "2557"]
[TimeControl "180+2"]
[EndTime "11:08:35 PDT"]
[Termination "Mornar1951 won by resignation"]

1. e3 {[%clk 0:03:00.2]} 1... g6 {[%clk 0:02:55.9]} 2. d4 {[%clk 0:02:59.9]}
2... Nf6 {[%clk 0:02:56.2]} 3. Ne2 {[%clk 0:03:01.5]} 3... Bg7 {[%clk
0:02:55.9]} 4. h4 {[%clk 0:03:03.4]} 4... c5 {[%clk 0:02:45.3]} 5. h5 {[%clk
0:03:04.3]} 5... Nxh5 {[%clk 0:02:44.1]} 6. Rxh5 {[%clk 0:03:05.4]} 6... gxh5
{[%clk 0:02:46]} 7. Nf4 {[%clk 0:03:07.3]} 7... cxd4 {[%clk 0:02:26.3]} 8. Nxh5
{[%clk 0:03:07.8]} 8... Rg8 {[%clk 0:02:20.5]} 9. Nxg7+ {[%clk 0:03:07.3]} 9...
Rxg7 {[%clk 0:02:22.4]} 10. Qxd4 {[%clk 0:03:08.6]} 10... Qa5+ {[%clk
0:02:14.9]} 11. Nc3 {[%clk 0:03:09.4]} 11... f6 {[%clk 0:02:09.9]} 12. Bd2
{[%clk 0:03:01]} 12... Nc6 {[%clk 0:02:10.9]} 13. Qh4 {[%clk 0:03:00.5]} 13...
Qg5 {[%clk 0:02:11.3]} 14. Qh2 {[%clk 0:03:00.9]} 14... d6 {[%clk 0:02:11.6]}
15. O-O-O {[%clk 0:03:01.2]} 15... Be6 {[%clk 0:02:00.3]} 16. e4 {[%clk
0:03:01.8]} 16... Qg6 {[%clk 0:01:44]} 17. g3 {[%clk 0:02:59.7]} 17... O-O-O
{[%clk 0:01:42]} 18. Be2 {[%clk 0:03:01.1]} 18... f5 {[%clk 0:01:36.7]} 19. Bh5
{[%clk 0:03:00.8]} 19... Qf6 {[%clk 0:01:37.2]} 20. Nd5 {[%clk 0:02:59.6]} 20...
Bxd5 {[%clk 0:01:27.2]} 21. exd5 {[%clk 0:03:00.9]} 21... Ne5 {[%clk 0:01:23.5]}
22. f4 {[%clk 0:03:01.4]} 22... Ng4 {[%clk 0:01:20.1]} 23. Qg1 {[%clk
0:03:02.3]} 23... Kb8 {[%clk 0:01:03.9]} 24. Bc3 {[%clk 0:03:03.2]} 24... Qf8
{[%clk 0:01:04.9]} 25. Bxg7 {[%clk 0:03:03.1]} 25... Qxg7 {[%clk 0:01:06.8]} 26.
Re1 {[%clk 0:03:02.5]} 26... Nf6 {[%clk 0:01:07.1]} 27. Bf3 {[%clk 0:03:01.9]}
27... Rg8 {[%clk 0:01:07.2]} 28. Bd1 {[%clk 0:02:57]} 28... Ne4 {[%clk
0:01:05.8]} 29. Qf1 {[%clk 0:02:53]} 29... Qxg3 {[%clk 0:01:03.8]} 30. c3 {[%clk
0:02:53.7]} 30... Rg7 {[%clk 0:00:56.4]} 31. Bc2 {[%clk 0:02:52.5]} 31... Nf6
{[%clk 0:00:44.5]} 32. Bxf5 {[%clk 0:02:52.7]} 32... Nxd5 {[%clk 0:00:44]} 33.
Re4 {[%clk 0:02:47.5]} 33... Qh2 {[%clk 0:00:33.2]} 34. Re1 {[%clk 0:02:22.6]}
34... Qxf4+ {[%clk 0:00:32.2]} 35. Qxf4 {[%clk 0:02:18.1]} 35... Nxf4 {[%clk
0:00:34.1]} 36. Re4 {[%clk 0:02:18.1]} 36... e5 {[%clk 0:00:34.8]} 37. c4 {[%clk
0:02:18.7]} 37... b6 {[%clk 0:00:35.4]} 38. b4 {[%clk 0:02:19]} 38... h5 {[%clk
0:00:35.8]} 39. c5 {[%clk 0:02:20.2]} 39... bxc5 {[%clk 0:00:36.8]} 40. bxc5
{[%clk 0:02:21.7]} 40... Nd3+ {[%clk 0:00:38.4]} 41. Kc2 {[%clk 0:02:22]} 41...
Nxc5 {[%clk 0:00:40.3]} 42. Rh4 {[%clk 0:02:23.5]} 42... Rg5 {[%clk 0:00:39.5]}
43. Bh7 {[%clk 0:02:23.9]} 43... Kc7 {[%clk 0:00:40.2]} 44. Kc3 {[%clk
0:02:25.2]} 44... d5 {[%clk 0:00:38.8]} 45. Bc2 {[%clk 0:02:26.2]} 45... Kd6
{[%clk 0:00:38]} 46. Bd1 {[%clk 0:02:27.2]} 46... d4+ {[%clk 0:00:35.7]} 47. Kc4
{[%clk 0:02:28]} 47... Ne6 {[%clk 0:00:32.6]} 48. Bxh5 {[%clk 0:02:28]} 48...
Rg3 {[%clk 0:00:32.8]} 49. Bd1 {[%clk 0:02:28.5]} 49... Rc3+ {[%clk 0:00:33.1]}
50. Kb4 {[%clk 0:02:29.8]} 50... Rc6 {[%clk 0:00:29.2]} 51. Bb3 {[%clk
0:02:30.2]} 51... Rb6+ {[%clk 0:00:30.1]} 52. Kc4 {[%clk 0:02:30.9]} 52... Rc6+
{[%clk 0:00:29]} 53. Kb4 {[%clk 0:02:32.3]} 53... Nc5 {[%clk 0:00:28.4]} 54.
Rh6+ {[%clk 0:02:33.3]} 54... Kc7 {[%clk 0:00:29.4]} 55. Rh8 {[%clk 0:02:33.9]}
55... Nxb3 {[%clk 0:00:29.3]} 56. axb3 {[%clk 0:02:35.2]} 56... Kd6 {[%clk
0:00:26.1]} 57. Rd8+ {[%clk 0:02:34.7]} 57... Ke6 {[%clk 0:00:27]} 58. Kb5
{[%clk 0:02:35.3]} 58... Rd6 {[%clk 0:00:27]} 59. Re8+ {[%clk 0:02:36.9]} 59...
Kd5 {[%clk 0:00:28.1]} 60. Kb4 {[%clk 0:02:37.1]} 60... Rb6+ {[%clk 0:00:27.2]}
61. Ka3 {[%clk 0:02:38.1]} 61... d3 {[%clk 0:00:27.9]} 62. Kb2 {[%clk
0:02:39.6]} 62... Rc6 {[%clk 0:00:28.3]} 63. b4 {[%clk 0:02:38.6]} 63... Kd4
{[%clk 0:00:28.3]} 64. Rd8+ {[%clk 0:02:38.6]} 64... Ke3 {[%clk 0:00:29]} 65. b5
{[%clk 0:02:40.5]} 65... Rc5 {[%clk 0:00:28.9]} 66. Rd7 {[%clk 0:02:39.4]} 66...
Rxb5+ {[%clk 0:00:29.4]} 67. Kc3 {[%clk 0:02:41.3]} 67... Rc5+ {[%clk
0:00:30.4]} 68. Kb4 {[%clk 0:02:42.9]} 68... Rc8 {[%clk 0:00:31.1]} 69. Rxa7
{[%clk 0:02:42.1]} 69... d2 {[%clk 0:00:32.2]} 70. Rd7 {[%clk 0:02:44]} 70...
Ke2 {[%clk 0:00:32.9]} 71. Re7 {[%clk 0:02:44.2]} 71... d1=Q {[%clk 0:00:33.8]}
72. Rxe5+ {[%clk 0:02:45.3]} 72... Kf3 {[%clk 0:00:34.9]} 73. Rc5 {[%clk
0:02:47.2]} 73... Rxc5 {[%clk 0:00:35.2]} 74. Kxc5 {[%clk 0:02:48.4]} 74... Ke4
{[%clk 0:00:36.1]} 0-1

[Event "*** Titled Tuesday 3|2 Blitz"]
[Site "Chess.com"]
[Date "2016.09.06"]
[Round "1"]
[White "IamSchrodingersCat"]
[Black "kleinebeer98"]
[Result "1-0"]
[WhiteElo "2273"]
[BlackElo "2516"]
[TimeControl "180+2"]
[EndTime "11:08:45 PDT"]
[Termination "IamSchrodingersCat won by resignation"]

1. e4 {[%clk 0:03:01]} 1... e5 {[%clk 0:02:58.6]} 2. Nf3 {[%clk 0:03:01.4]} 2...
Nc6 {[%clk 0:02:59.4]} 3. Bb5 {[%clk 0:03:01.9]} 3... f5 {[%clk 0:03:00.4]} 4.
d3 {[%clk 0:03:00.8]} 4... fxe4 {[%clk 0:03:01.5]} 5. dxe4 {[%clk 0:03:02.7]}
5... Nf6 {[%clk 0:03:03]} 6. O-O {[%clk 0:03:00]} 6... d6 {[%clk 0:03:03]} 7.
Nc3 {[%clk 0:02:54.1]} 7... Be7 {[%clk 0:03:01.5]} 8. Bc4 {[%clk 0:02:42.6]}
8... Na5 {[%clk 0:03:01.3]} 9. Bd3 {[%clk 0:02:38.9]} 9... O-O {[%clk
0:03:00.9]} 10. h3 {[%clk 0:02:40]} 10... Kh8 {[%clk 0:03:02]} 11. Be3 {[%clk
0:02:37.1]} 11... Qe8 {[%clk 0:03:02.3]} 12. b4 {[%clk 0:02:30.8]} 12... Nc6
{[%clk 0:03:03.1]} 13. b5 {[%clk 0:02:31.6]} 13... Nd8 {[%clk 0:03:02.8]} 14.
Nd5 {[%clk 0:02:24.7]} 14... Nxd5 {[%clk 0:02:55.1]} 15. exd5 {[%clk 0:02:26.6]}
15... Qh5 {[%clk 0:02:50.8]} 16. Be4 {[%clk 0:02:19]} 16... h6 {[%clk
0:02:36.3]} 17. c4 {[%clk 0:02:09.2]} 17... b6 {[%clk 0:02:33.5]} 18. Re1 {[%clk
0:01:33]} 18... Nb7 {[%clk 0:02:27.9]} 19. a4 {[%clk 0:01:29]} 19... Nc5 {[%clk
0:02:29.2]} 20. Bxc5 {[%clk 0:01:29.5]} 20... bxc5 {[%clk 0:02:31.1]} 21. Qe2
{[%clk 0:01:24.8]} 21... Rf4 {[%clk 0:02:31.9]} 22. Bd3 {[%clk 0:01:11.8]} 22...
Bxh3 {[%clk 0:02:31]} 23. Nxe5 {[%clk 0:01:09.6]} 23... Qxe5 {[%clk 0:02:12.2]}
24. Qxe5 {[%clk 0:01:07.1]} 24... dxe5 {[%clk 0:02:14.1]} 25. gxh3 {[%clk
0:01:08.2]} 25... Raf8 {[%clk 0:02:15.6]} 26. Ra2 {[%clk 0:00:59.9]} 26... Bh4
{[%clk 0:02:14.5]} 27. Rxe5 {[%clk 0:00:55.9]} 27... Bxf2+ {[%clk 0:02:14.8]}
28. Kg2 {[%clk 0:00:56.5]} 28... R4f7 {[%clk 0:02:00.4]} 29. Rae2 {[%clk
0:00:54.2]} 29... Bh4 {[%clk 0:01:57.2]} 30. Re8 {[%clk 0:00:51.9]} 30... Kg8
{[%clk 0:01:55.8]} 31. Bg6 {[%clk 0:00:47.2]} 31... Rf6 {[%clk 0:01:45.8]} 32.
Rxf8+ {[%clk 0:00:47.7]} 32... Rxf8 {[%clk 0:01:47.7]} 33. Re8 {[%clk
0:00:48.3]} 33... Rxe8 {[%clk 0:01:48.1]} 34. Bxe8 {[%clk 0:00:50.2]} 34... Kf8
{[%clk 0:01:49.7]} 35. Bh5 {[%clk 0:00:47.6]} 35... Ke7 {[%clk 0:01:51.6]} 36.
Kf3 {[%clk 0:00:47.8]} 36... Kf6 {[%clk 0:01:51.6]} 37. Ke4 {[%clk 0:00:45.5]}
37... g6 {[%clk 0:01:52.5]} 38. Bg4 {[%clk 0:00:46.8]} 38... Bg3 {[%clk
0:01:53.5]} 39. Bc8 {[%clk 0:00:47]} 39... h5 {[%clk 0:01:54.4]} 40. a5 {[%clk
0:00:46.9]} 40... Ke7 {[%clk 0:01:47.9]} 41. Be6 {[%clk 0:00:44.1]} 41... Be1
{[%clk 0:01:48.4]} 42. a6 {[%clk 0:00:44.8]} 42... Bg3 {[%clk 0:01:47]} 43. Kf3
{[%clk 0:00:44.6]} 43... Bd6 {[%clk 0:01:47.1]} 44. Ke4 {[%clk 0:00:40.7]} 44...
Kf6 {[%clk 0:01:48.5]} 45. Bd7 {[%clk 0:00:40.2]} 45... Kg5 {[%clk 0:01:49.6]}
46. Be8 {[%clk 0:00:40.7]} 46... Kf6 {[%clk 0:01:44.8]} 47. Bd7 {[%clk
0:00:40.6]} 47... Kg7 {[%clk 0:01:41.6]} 48. Be8 {[%clk 0:00:40.6]} 48... Kh6
{[%clk 0:01:42.8]} 49. Bf7 {[%clk 0:00:40.4]} 49... Kg5 {[%clk 0:01:41]} 50. Be8
{[%clk 0:00:40.6]} 50... Kh6 {[%clk 0:01:42]} 51. Bf7 {[%clk 0:00:41.4]} 51...
g5 {[%clk 0:01:43.5]} 52. Kf5 {[%clk 0:00:41.4]} 52... Bf4 {[%clk 0:01:34.5]}
53. h4 {[%clk 0:00:31.3]} 53... Be3 {[%clk 0:01:22.9]} 54. d6 {[%clk 0:00:27.1]}
54... cxd6 {[%clk 0:01:19]} 55. b6 {[%clk 0:00:28.2]} 55... axb6 {[%clk
0:01:20.6]} 56. a7 {[%clk 0:00:29]} 56... Kg7 {[%clk 0:01:22.5]} 57. Bxh5 {[%clk
0:00:28.5]} 57... gxh4 {[%clk 0:01:23.3]} 58. a8=Q {[%clk 0:00:29.2]} 58... h3
{[%clk 0:01:25.2]} 59. Qa7+ {[%clk 0:00:27.2]} 1-0

[Event "*** Titled Tuesday 3|2 Blitz"]
[Site "Chess.com"]
[Date "2016.09.06"]
[Round "1"]
[White "AlexanderL"]
[Black "Baggio95"]
[Result "0-1"]
[WhiteElo "2529"]
[BlackElo "2324"]
[TimeControl "180+2"]
[EndTime "11:08:58 PDT"]
[Termination "Baggio95 won on time"]

1. d4 {[%clk 0:02:51.3]} 1... Nf6 {[%clk 0:02:54.2]} 2. c4 {[%clk 0:02:51.8]}
2... g6 {[%clk 0:02:53.8]} 3. Nc3 {[%clk 0:02:52]} 3... d5 {[%clk 0:02:54.1]} 4.
cxd5 {[%clk 0:02:52.1]} 4... Nxd5 {[%clk 0:02:54]} 5. e4 {[%clk 0:02:53]} 5...
Nxc3 {[%clk 0:02:54.1]} 6. bxc3 {[%clk 0:02:54.9]} 6... Bg7 {[%clk 0:02:55.1]}
7. Qa4+ {[%clk 0:02:55.6]} 7... Nd7 {[%clk 0:02:53.2]} 8. Nf3 {[%clk 0:02:55.6]}
8... O-O {[%clk 0:02:52.1]} 9. Be2 {[%clk 0:02:55.4]} 9... c5 {[%clk 0:02:50.1]}
10. O-O {[%clk 0:02:56.3]} 10... Qc7 {[%clk 0:02:42.9]} 11. Rb1 {[%clk 0:02:44]}
11... b6 {[%clk 0:02:39]} 12. Be3 {[%clk 0:02:35.6]} 12... Bb7 {[%clk
0:02:37.9]} 13. e5 {[%clk 0:02:34.6]} 13... e6 {[%clk 0:02:12.5]} 14. Nd2 {[%clk
0:02:29.6]} 14... a6 {[%clk 0:02:05.7]} 15. Qb3 {[%clk 0:02:25.9]} 15... b5
{[%clk 0:01:56]} 16. a4 {[%clk 0:02:25]} 16... Bd5 {[%clk 0:01:50.7]} 17. Qd1
{[%clk 0:02:20.2]} 17... c4 {[%clk 0:01:32.9]} 18. axb5 {[%clk 0:02:19.5]} 18...
axb5 {[%clk 0:01:33.3]} 19. Rxb5 {[%clk 0:02:08]} 19... Qc6 {[%clk 0:01:32.2]}
20. Rb4 {[%clk 0:02:07.8]} 20... Bxg2 {[%clk 0:01:24]} 21. Rxc4 {[%clk
0:02:07.9]} 21... Qd5 {[%clk 0:01:11.7]} 22. Rc7 {[%clk 0:02:01.4]} 22... Bxf1
{[%clk 0:01:03.9]} 23. Bxf1 {[%clk 0:02:01.2]} 23... Nb6 {[%clk 0:00:57.9]} 24.
c4 {[%clk 0:01:46.2]} 24... Qa5 {[%clk 0:00:50.8]} 25. Rc5 {[%clk 0:01:36.9]}
25... Qa4 {[%clk 0:00:48.7]} 26. Qf3 {[%clk 0:01:32.2]} 26... Rab8 {[%clk
0:00:45.7]} 27. Rb5 {[%clk 0:01:29.4]} 27... Qc2 {[%clk 0:00:40.7]} 28. Qc6
{[%clk 0:01:19.6]} 28... Na4 {[%clk 0:00:34.4]} 29. Rxb8 {[%clk 0:01:08.4]}
29... Rxb8 {[%clk 0:00:35]} 30. Ne4 {[%clk 0:01:07]} 30... Nc3 {[%clk
0:00:30.9]} 31. Nd6 {[%clk 0:00:57.5]} 31... Ne2+ {[%clk 0:00:25.9]} 32. Kg2
{[%clk 0:00:51.9]} 32... Nc3 {[%clk 0:00:19.6]} 33. Nxf7 {[%clk 0:00:46.1]}
33... Nd1 {[%clk 0:00:13.8]} 34. Qxe6 {[%clk 0:00:23.8]} 34... Nxe3+ {[%clk
0:00:13.5]} 0-1

[Event "*** Titled Tuesday 3|2 Blitz"]
[Site "Chess.com"]
[Date "2016.09.06"]
[Round "1"]
[White "severomorskij"]
[Black "hypert"]
[Result "1-0"]
[WhiteElo "2607"]
[BlackElo "2332"]
[TimeControl "180+2"]
[EndTime "11:09:15 PDT"]
[Termination "severomorskij won on time"]

1. d4 {[%clk 0:03:01.3]} 1... Nf6 {[%clk 0:02:59.9]} 2. Bg5 {[%clk 0:02:59.6]}
2... d5 {[%clk 0:02:59.9]} 3. Nd2 {[%clk 0:02:57.3]} 3... Nbd7 {[%clk
0:02:56.8]} 4. e3 {[%clk 0:02:54.5]} 4... e6 {[%clk 0:02:53]} 5. f4 {[%clk
0:02:54.5]} 5... c5 {[%clk 0:02:50.5]} 6. c3 {[%clk 0:02:54.2]} 6... Be7 {[%clk
0:02:50.4]} 7. Ngf3 {[%clk 0:02:54.5]} 7... b6 {[%clk 0:02:43.4]} 8. Bd3 {[%clk
0:02:53.5]} 8... a5 {[%clk 0:02:44.1]} 9. Qe2 {[%clk 0:02:49.5]} 9... Bb7 {[%clk
0:02:41.4]} 10. O-O {[%clk 0:02:50.3]} 10... Qc8 {[%clk 0:02:42]} 11. Ne5 {[%clk
0:02:48.8]} 11... h6 {[%clk 0:02:29.7]} 12. Bxf6 {[%clk 0:02:39.5]} 12... Nxf6
{[%clk 0:02:19.5]} 13. Bb5+ {[%clk 0:02:38.5]} 13... Kf8 {[%clk 0:02:19.6]} 14.
Ndf3 {[%clk 0:02:38.4]} 14... Ba6 {[%clk 0:02:16.7]} 15. a4 {[%clk 0:02:38.9]}
15... Bxb5 {[%clk 0:02:16.4]} 16. axb5 {[%clk 0:02:39.7]} 16... Ne4 {[%clk
0:02:08.7]} 17. Nc6 {[%clk 0:02:35.6]} 17... f5 {[%clk 0:01:59.8]} 18. Nfe5
{[%clk 0:02:32]} 18... Qe8 {[%clk 0:02:00.2]} 19. c4 {[%clk 0:02:25.7]} 19...
Bd6 {[%clk 0:01:53.7]} 20. dxc5 {[%clk 0:02:14.2]} 20... Bxc5 {[%clk 0:01:49.1]}
21. cxd5 {[%clk 0:02:14]} 21... exd5 {[%clk 0:01:50]} 22. Rad1 {[%clk
0:02:12.9]} 22... Qe6 {[%clk 0:01:48.6]} 23. Kh1 {[%clk 0:02:12.1]} 23... g6
{[%clk 0:01:43.8]} 24. Nd4 {[%clk 0:01:55.9]} 24... Bxd4 {[%clk 0:01:35.2]} 25.
Rxd4 {[%clk 0:01:56.3]} 25... Kg7 {[%clk 0:01:34.8]} 26. Rc1 {[%clk 0:01:34.8]}
26... Rhc8 {[%clk 0:01:32.7]} 27. Rc6 {[%clk 0:01:34.9]} 27... Rxc6 {[%clk
0:01:28.6]} 28. bxc6 {[%clk 0:01:35.5]} 28... a4 {[%clk 0:01:26.3]} 29. Qc2
{[%clk 0:01:16.6]} 29... a3 {[%clk 0:01:23.9]} 30. bxa3 {[%clk 0:01:16.7]} 30...
Rxa3 {[%clk 0:01:23.6]} 31. Rd1 {[%clk 0:01:17.2]} 31... d4 {[%clk 0:01:19.9]}
32. c7 {[%clk 0:01:07]} 32... Rc3 {[%clk 0:01:16.2]} 33. Qb2 {[%clk 0:00:54.4]}
33... dxe3 {[%clk 0:00:53.7]} 34. Rd7+ {[%clk 0:00:34.6]} 34... Qxd7 {[%clk
0:00:07.8]} 35. Nxd7 {[%clk 0:00:33.3]} 35... e2 {[%clk 0:00:07.6]} 36. Qa1
{[%clk 0:00:25.7]} 36... Kf7 {[%clk 0:00:07.1]} 37. Qe1 {[%clk 0:00:19]} 37...
Rxc7 {[%clk 0:00:07.1]} 38. Ne5+ {[%clk 0:00:18]} 38... Kf6 {[%clk 0:00:07.3]}
39. Nd3 {[%clk 0:00:16.4]} 39... Rc2 {[%clk 0:00:07.8]} 40. h3 {[%clk
0:00:15.8]} 40... Rd2 {[%clk 0:00:05]} 41. Qh4+ {[%clk 0:00:16.4]} 41... Kf7
{[%clk 0:00:04.6]} 42. Ne1 {[%clk 0:00:16.2]} 42... Rd1 {[%clk 0:00:04.2]} 43.
Kh2 {[%clk 0:00:17.4]} 43... g5 {[%clk 0:00:03.2]} 44. Qh5+ {[%clk 0:00:18.1]}
44... Kg7 {[%clk 0:00:03.5]} 45. Qxe2 {[%clk 0:00:19.6]} 1-0

[Event "*** Titled Tuesday 3|2 Blitz"]
[Site "Chess.com"]
[Date "2016.09.06"]
[Round "1"]
[White "Astaneh"]
[Black "alturas_pacificas"]
[Result "1-0"]
[WhiteElo "2474"]
[BlackElo "2139"]
[TimeControl "180+2"]
[EndTime "11:09:47 PDT"]
[Termination "Astaneh won by resignation"]

1. d3 {[%clk 0:02:47.6]} 1... d5 {[%clk 0:03:00.1]} 2. Nf3 {[%clk 0:02:46.5]}
2... Nf6 {[%clk 0:03:00.7]} 3. Nbd2 {[%clk 0:02:46.1]} 3... Bf5 {[%clk
0:02:58.9]} 4. g3 {[%clk 0:02:46]} 4... e6 {[%clk 0:02:59.7]} 5. Bg2 {[%clk
0:02:46.5]} 5... h6 {[%clk 0:03:01.4]} 6. O-O {[%clk 0:02:48.1]} 6... Be7 {[%clk
0:03:00.2]} 7. c3 {[%clk 0:02:48.9]} 7... O-O {[%clk 0:03:01.4]} 8. Re1 {[%clk
0:02:48.4]} 8... Bh7 {[%clk 0:03:01.6]} 9. Qb3 {[%clk 0:02:46.7]} 9... Qc8
{[%clk 0:02:48.8]} 10. e4 {[%clk 0:02:46.4]} 10... c6 {[%clk 0:02:45.7]} 11. e5
{[%clk 0:02:46.4]} 11... Nfd7 {[%clk 0:02:46.3]} 12. d4 {[%clk 0:02:47.4]} 12...
c5 {[%clk 0:02:46.9]} 13. Nf1 {[%clk 0:02:47.8]} 13... Nc6 {[%clk 0:02:42]} 14.
Ne3 {[%clk 0:02:47.5]} 14... a6 {[%clk 0:02:17.5]} 15. h4 {[%clk 0:02:37.6]}
15... b5 {[%clk 0:02:16.4]} 16. Qd1 {[%clk 0:02:27]} 16... b4 {[%clk 0:02:12.8]}
17. Bd2 {[%clk 0:02:26.6]} 17... Rb8 {[%clk 0:02:00.4]} 18. Rc1 {[%clk
0:02:26.4]} 18... Qb7 {[%clk 0:01:49.6]} 19. Ng4 {[%clk 0:02:20.2]} 19... c4
{[%clk 0:01:39.8]} 20. Qe2 {[%clk 0:01:31.2]} 20... bxc3 {[%clk 0:01:36.5]} 21.
Bxc3 {[%clk 0:01:30]} 21... Nb4 {[%clk 0:01:27.6]} 22. Rcd1 {[%clk 0:01:07.5]}
22... Nxa2 {[%clk 0:01:24.2]} 23. Qe3 {[%clk 0:01:08.3]} 23... Nxc3 {[%clk
0:01:20.9]} 24. bxc3 {[%clk 0:01:10.2]} 24... Rfe8 {[%clk 0:01:09.3]} 25. Ra1
{[%clk 0:01:07.2]} 25... Ra8 {[%clk 0:01:02.6]} 26. Nd2 {[%clk 0:00:59.9]} 26...
a5 {[%clk 0:01:00.6]} 27. Nxc4 {[%clk 0:01:00.9]} 27... Qc7 {[%clk 0:00:52.9]}
28. Nd2 {[%clk 0:01:00.4]} 28... Ra7 {[%clk 0:00:44.3]} 29. Rec1 {[%clk
0:01:00.1]} 29... Nb6 {[%clk 0:00:43.3]} 30. Qe2 {[%clk 0:00:56.7]} 30... Rc8
{[%clk 0:00:35.5]} 31. Ne3 {[%clk 0:00:57.5]} 31... a4 {[%clk 0:00:29.5]} 32. c4
{[%clk 0:00:57]} 32... dxc4 {[%clk 0:00:29.6]} 33. Ndxc4 {[%clk 0:00:57.6]}
33... Nxc4 {[%clk 0:00:30.9]} 34. Rxc4 {[%clk 0:00:58.6]} 34... Qd8 {[%clk
0:00:30.1]} 35. Rcxa4 {[%clk 0:00:58.6]} 35... Rd7 {[%clk 0:00:21.2]} 36. Ra8
{[%clk 0:00:56.5]} 36... Rdc7 {[%clk 0:00:18.4]} 37. Rxc8 {[%clk 0:00:55.8]}
37... Rxc8 {[%clk 0:00:19.7]} 38. d5 {[%clk 0:00:56.5]} 38... exd5 {[%clk
0:00:19.1]} 39. Nxd5 {[%clk 0:00:57.3]} 39... Bc5 {[%clk 0:00:19.6]} 40. e6
{[%clk 0:00:58.4]} 40... fxe6 {[%clk 0:00:16.7]} 41. Qxe6+ {[%clk 0:01:00.3]}
41... Kh8 {[%clk 0:00:17.9]} 42. Bh3 {[%clk 0:00:50.9]} 42... Rb8 {[%clk
0:00:16.3]} 43. Rd1 {[%clk 0:00:34.7]} 43... Qf8 {[%clk 0:00:16.3]} 44. Nf4
{[%clk 0:00:33.7]} 44... Rb2 {[%clk 0:00:14.3]} 45. Rf1 {[%clk 0:00:33.7]} 45...
Rb8 {[%clk 0:00:09.3]} 46. h5 {[%clk 0:00:29.6]} 46... Re8 {[%clk 0:00:09.7]}
47. Qd5 {[%clk 0:00:28.4]} 47... Ba7 {[%clk 0:00:09.9]} 48. Bg2 {[%clk
0:00:18.7]} 48... Qa3 {[%clk 0:00:10.3]} 49. Qf7 {[%clk 0:00:17]} 49... Rf8
{[%clk 0:00:10.4]} 50. Qc7 {[%clk 0:00:14.2]} 50... Qxg3 {[%clk 0:00:09]} 51.
Ng6+ {[%clk 0:00:15.4]} 51... Bxg6 {[%clk 0:00:10.3]} 52. Qxg3 {[%clk
0:00:15.3]} 52... Bxh5 {[%clk 0:00:08.8]} 53. Qa3 {[%clk 0:00:15.6]} 1-0